Workbook

Sheet паспорт
A1: ПАТ "УКРТРАНСГАЗ" | G1: ПАСПОРТ ФІЗИКО-ХІМІЧНИХ ПОКАЗНИКІВ ПРИРОДНОГО ГАЗУ №99
A2: Філія "УМГ "Київтрансгаз" | G2: переданогоДиканським ЛВУМГ та прийнятого ПАТ "Полтавагаз"
A3: Диканський п/м Диканське ЛВУМГ | G3: Маршрут №99
A4: Вимірювальна хіміко-аналітична лабораторія
A5: Свідоцтво № 186-13 чинне до 05.12.2018 р. | K5: по газопроводу "ЄФРЕМІВКА - ДИКАНЬКА- КИЇВ" | V5: за період з | X5: 2017-05-01 | Z5: по | AA5: 31.05.2017р.
A7: Число місяця | B7: Компонентний склад, % мол. | N7: Фізико-хімічні показники газу обчислені на основі компонентного складу, 101,325 кПа | X7: Температура точки роси за вологою (Р = 3.92 МПа), °С | Y7: Температура точки роси за вуглеводнями, °С | Z7: Вміст сірководню, г/м3 | AA7: Вміст меркаптанової сірки, г/м3 | AB7: Вміст механічних домішок, г/м3
N8: Густина абсолютна, кг/м3,при 20 ºС, | O8: Температура вимірювання/згоряння при 20/25°С
B9: метан, С1 | C9: етан, С2 | D9: пропан, С3 | E9: ізо-бутан, і-С4 | F9: н-бутан, н-С4 | G9: нео-пентан, нео-С5 | H9: ізо-пентан, і-С5 | I9: н-пентан, н-С5 | J9: гексани та вищі, С6+ | K9: кисень, О2 | L9: азот, N2 | M9: діоксид вуглецю, CО2 | O9: Теплота згоряння нижча | R9: Теплота згоряння вища | U9: Число Воббе вище
O10: ккал/м3 | P10: МДж/м3 | Q10: кВт⋅год/м3 | R10: ккал/м3 | S10: МДж/м3 | T10: кВт⋅год/м3 | U10: ккал/м3 | V10: МДж/м3 | W10: кВт⋅год/м3
A11: 1 | O11: 8102.961548 | P11: 33.9271 | Q11: =P11/3.6 -> 9.424194444 | R11: 8983 | S11: 37.6066 | T11: =S11/3.6 -> 10.44627778 | AC11: =SUM(B11:M11)+$K$42+$N$42 -> 0
A12: 2 | O12: 8102.961548 | P12: 33.9271 | Q12: =P12/3.6 -> 9.424194444 | R12: 8983 | S12: 37.6066 | T12: =S12/3.6 -> 10.44627778 | AC12: 0
A13: 3 | O13: 8102.961548 | P13: 33.9271 | Q13: 9.424194444 | R13: 8983 | S13: 37.6066 | T13: 10.44627778 | AC13: 0 | AD13: =IF(AC13=100,"ОК"," ") -> 
A14: 4 | B14: 93.1221 | C14: 2.8881 | D14: 0.6098 | E14: 0.0801 | F14: 0.1655 | G14: 0.0031 | H14: 0.0443 | I14: 0.0468 | J14: 0.0609 | K14: 0.0044 | L14: 2.7688 | M14: 0.2062 | N14: 0.7168 | O14: 8090.307748 | P14: 33.8725 | Q14: 9.409027778 | R14: 8968.353045 | S14: 37.5487 | T14: 10.43019444 | U14: 11624.62384 | V14: 48.6723 | W14: 13.51943639 | X14: -5.7 | Y14: -8.1 | AC14: 100.0001 | AD14: =IF(AC14=100,"ОК"," ") -> 
A15: 5 | O15: 8090.307748 | P15: 33.8725 | Q15: 9.409027778 | R15: 8968.353045 | S15: 37.5487 | T15: 10.43019444 | AC15: 0
A16: 6 | O16: 8090.307748 | P16: 33.8725 | Q16: 9.409027778 | R16: 8968.353045 | S16: 37.5487 | T16: 10.43019444 | AC16: 0
A17: 7 | O17: 8090.307748 | P17: 33.8725 | Q17: 9.409027778 | R17: 8968.353045 | S17: 37.5487 | T17: 10.43019444 | AC17: 0
A18: 8 | O18: 8090.307748 | P18: 33.8725 | Q18: 9.409027778 | R18: 8968.353045 | S18: 37.5487 | T18: 10.43019444 | AC18: 0
A19: 9 | O19: 8090.307748 | P19: 33.8725 | Q19: 9.409027778 | R19: 8968.353045 | S19: 37.5487 | T19: 10.43019444 | AC19: 0
A20: 10 | O20: 8090.307748 | P20: 33.8725 | Q20: 9.409027778 | R20: 8968.353045 | S20: 37.5487 | T20: 10.43019444 | AC20: 0
A21: 11 | B21: 93.0321 | C21: 2.918 | D21: 0.6082 | E21: 0.0796 | F21: 0.1642 | G21: 0.0029 | H21: 0.0439 | I21: 0.0498 | J21: 0.0523 | K21: 0.0025 | L21: 2.8406 | M21: 0.2056 | N21: 0.7171 | O21: 8084.097754 | P21: 33.8465 | Q21: 9.401805556 | R21: 8961.474283 | S21: 37.5199 | T21: 10.42219444 | U21: 11613.49415 | V21: 48.6257 | W21: 13.50649256 | X21: -11.6 | Y21: -5.7 | AC21: 99.9997
A22: 12 | O22: 8084.097754 | P22: 33.8465 | Q22: 9.401805556 | R22: 8961.474283 | S22: 37.5199 | T22: 10.42219444 | AC22: 0
A23: 13 | O23: 8084.097754 | P23: 33.8465 | Q23: 9.401805556 | R23: 8961.474283 | S23: 37.5199 | T23: 10.42219444 | AC23: 0
A24: 14 | O24: 8084.097754 | P24: 33.8465 | Q24: 9.401805556 | R24: 8961.474283 | S24: 37.5199 | T24: 10.42219444 | AC24: 0
A25: 15 | B25: 93.1948 | C25: 2.8648 | D25: 0.5839 | E25: 0.0761 | F25: 0.1559 | G25: 0.0029 | H25: 0.041 | I25: 0.0446 | J25: 0.0577 | K25: 0.0051 | L25: 2.768 | M25: 0.2052 | N25: 0.7159 | O25: 8080.825566 | P25: 33.8328 | Q25: 9.398 | R25: 8958.202095 | S25: 37.5062 | T25: 10.41838889 | U25: 11618.89181 | V25: 48.6483 | W25: 13.51277004 | X25: -11.9 | Y25: -4.9 | Z25: <0,006 | AA25: <0,02 | AB25: від. | AC25: 100 | AD25: ОК
A26: 16 | O26: 8080.825566 | P26: 33.8328 | Q26: 9.398 | R26: 8958.202095 | S26: 37.5062 | T26: 10.41838889 | AC26: 0
A27: 17 | O27: 8080.825566 | P27: 33.8328 | Q27: 9.398 | R27: 8958.202095 | S27: 37.5062 | T27: 10.41838889 | AC27: 0
A28: 18 | O28: 8080.825566 | P28: 33.8328 | Q28: 9.398 | R28: 8958.202095 | S28: 37.5062 | T28: 10.41838889 | AC28: 0
A29: 19 | O29: 8080.825566 | P29: 33.8328 | Q29: 9.398 | R29: 8958.202095 | S29: 37.5062 | T29: 10.41838889 | AC29: 0
A30: 20 | O30: 8080.825566 | P30: 33.8328 | Q30: 9.398 | R30: 8958.202095 | S30: 37.5062 | T30: 10.41838889 | AC30: 0 | AD30: =IF(AC30=100,"ОК"," ") -> 
A31: 21 | O31: 8080.825566 | P31: 33.8328 | Q31: 9.398 | R31: 8958.202095 | S31: 37.5062 | T31: 10.41838889 | AC31: 0
A32: 22 | O32: 8080.825566 | P32: 33.8328 | Q32: 9.398 | R32: 8958.202095 | S32: 37.5062 | T32: 10.41838889 | AC32: 0
A33: 23 | O33: 8080.825566 | P33: 33.8328 | Q33: 9.398 | R33: 8958.202095 | S33: 37.5062 | T33: 10.41838889 | AC33: 0 | AD33: =IF(AC33=100,"ОК"," ") -> 
A34: 24 | O34: 8080.825566 | P34: 33.8328 | Q34: 9.398 | R34: 8958.202095 | S34: 37.5062 | T34: 10.41838889 | AC34: 0
A35: 25 | B35: 93.0858 | C35: 2.9279 | D35: 0.6253 | E35: 0.0833 | F35: 0.1705 | G35: 0.0031 | H35: 0.0477 | I35: 0.0447 | J35: 0.0517 | K35: 0.007 | L35: 2.745 | M35: 0.2079 | N35: 0.7171 | O35: 8095.299627 | P35: 33.8934 | Q35: 9.414833333 | R35: 8973.750963 | S35: 37.5713 | T35: 10.43647222 | U35: 11629.66324 | V35: 48.6934 | W35: 13.52529722 | X35: -8.3 | Y35: -14.5 | AC35: 99.9999
A36: 26 | O36: 8095.299627 | P36: 33.8934 | Q36: 9.414833333 | R36: 8973.750963 | S36: 37.5713 | T36: 10.43647222
A37: 27 | O37: 8095.299627 | P37: 33.8934 | Q37: 9.414833333 | R37: 8973.750963 | S37: 37.5713 | T37: 10.43647222
A38: 28 | O38: 8095.299627 | P38: 33.8934 | Q38: 9.414833333 | R38: 8973.750963 | S38: 37.5713 | T38: 10.43647222
A39: 29 | O39: 8095.299627 | P39: 33.8934 | Q39: 9.414833333 | R39: 8973.750963 | S39: 37.5713 | T39: 10.43647222
A40: 30 | O40: 8095.299627 | P40: 33.8934 | Q40: 9.414833333 | R40: 8973.750963 | S40: 37.5713 | T40: 10.43647222 | AC40: =SUM(B40:M40)+$K$42+$N$42 -> 0
A41: 31 | O41: 8095.299627 | P41: 33.8934 | Q41: 9.414833333 | R41: 8973.750963 | S41: 37.5713 | T41: 10.43647222 | AC41: =SUM(B41:M41)+$K$42+$N$42 -> 0
A42: Рівень одоризації відповідає чинним нормативним документам | O42: =SUMPRODUCT(O11:O41,' розрахунок'!G7:G37)/' розрахунок'!G38 -> 8086.986916 | P42: =SUMPRODUCT(P11:P41,' розрахунок'!G7:G37)/' розрахунок'!G38 -> 33.85871624 | Q42: =SUMPRODUCT(Q11:Q41,' розрахунок'!G7:G37)/' розрахунок'!G38 -> 9.405198955 | R42: =SUMPRODUCT(R11:R41,' розрахунок'!G7:G37)/' розрахунок'!G38 -> 8964.838841 | S42: =SUMPRODUCT(S11:S41,' розрахунок'!G7:G37)/' розрахунок'!G38 -> 37.5337335 | T42: =SUMPRODUCT(T11:T41,' розрахунок'!G7:G37)/' розрахунок'!G38 -> 10.42603708
H43: Середньозважене значення теплоти згоряння:
B46: Заступник начальника Диканського ЛВУМГ 31.05.2017р. | L46: Герасименко І.М. | Z46: =TODAY() -> 2017-06-01
B48: Завідувач лабораторії Диканського ЛВУМГ | L48: Горшковоз О.В. | Z48: =TODAY() -> 2017-06-01
B50: Начальник служби ГВМ та М Диканського ЛВУМГ | L50: Левадний С.А. | Z50: =TODAY() -> 2017-06-01

Sheet розрахунок
A2: Додаток до Паспорту фізико-хімічних показників природного газу по маршруту №99
A4: Число місяця | B4: Теплота згоряння вища, МДж/м3 | C4: Полтавська область | G4: Загальний обсяг газу, м3
C5: Обсяг газу переданого за добу, м3
C6: ГРС Кошманівка | D6: ГРС Карлівка | E6: ГРС Попівка | F6: ГРС Халтуріно
A7: 1 | B7: =паспорт!S11 -> 37.6066 | C7: 1034.56 | D7: 7036.44 | E7: 2809.03 | F7: 570.38 | G7: =SUM(C7:F7) -> 11450.41
A8: 2 | B8: =паспорт!S12 -> 37.6066 | C8: 992.12 | D8: 6885.96 | E8: 2529.58 | F8: 497.69 | G8: 10905.35
A9: 3 | B9: =паспорт!S13 -> 37.6066 | C9: 955.63 | D9: 6446.82 | E9: 2375.29 | F9: 473.94 | G9: 10251.68
A10: 4 | B10: =паспорт!S14 -> 37.5487 | C10: 911.46 | D10: 6402.64 | E10: 2123.39 | F10: 506.64 | G10: 9944.13
A11: 5 | B11: =паспорт!S15 -> 37.5487 | C11: 928.23 | D11: 6722.66 | E11: 2262.99 | F11: 522.86 | G11: 10436.74
A12: 6 | B12: =паспорт!S16 -> 37.5487 | C12: 966.06 | D12: 6894.29 | E12: 2374.89 | F12: 544.7 | G12: 10779.94
A13: 7 | B13: =паспорт!S17 -> 37.5487 | C13: 876.43 | D13: 6717.72 | E13: 2273.12 | F13: 434.65 | G13: 10301.92
A14: 8 | B14: =паспорт!S18 -> 37.5487 | C14: 952.42 | D14: 6967.46 | E14: 2684.19 | F14: 567.18 | G14: 11171.25
A15: 9 | B15: =паспорт!S19 -> 37.5487 | C15: 1050.01 | D15: 7670.15 | E15: 2819.13 | F15: 607.32 | G15: 12146.61
A16: 10 | B16: =паспорт!S20 -> 37.5487 | C16: 1539.33 | D16: 8622.98 | E16: 3901.26 | F16: 787.31 | G16: 14850.88
A17: 11 | B17: =паспорт!S21 -> 37.5199 | C17: 1840.44 | D17: 10295.18 | E17: 4737.75 | F17: 1032.4 | G17: 17905.77
A18: 12 | B18: =паспорт!S22 -> 37.5199 | C18: 2527.17 | D18: 13091.92 | E18: 5783.19 | F18: 1262.79 | G18: 22665.07
A19: 13 | B19: =паспорт!S23 -> 37.5199 | C19: 2873.3 | D19: 16222.97 | E19: 7167.21 | F19: 1580.72 | G19: 27844.2
A20: 14 | B20: =паспорт!S24 -> 37.5199 | C20: 2514.73 | D20: 14468.81 | E20: 5909.9 | F20: 1313.81 | G20: 24207.25
A21: 15 | B21: =паспорт!S25 -> 37.5062 | C21: 1598.94 | D21: 10743.79 | E21: 4097.53 | F21: 1002.12 | G21: 17442.38
A22: 16 | B22: =паспорт!S26 -> 37.5062 | C22: 1118.56 | D22: 7473.62 | E22: 2791.75 | F22: 594.29 | G22: 11978.22
A23: 17 | B23: =паспорт!S27 -> 37.5062 | C23: 1438.58 | D23: 8024.56 | E23: 3162.3 | F23: 818.14 | G23: 13443.58
A24: 18 | B24: =паспорт!S28 -> 37.5062 | C24: 2039.42 | D24: 12878.55 | E24: 4902.44 | F24: 1188.3 | G24: 21008.71
A25: 19 | B25: =паспорт!S29 -> 37.5062 | C25: 2392.5 | D25: 13693.48 | E25: 5267.48 | F25: 1215.92 | G25: 22569.38
A26: 20 | B26: =паспорт!S30 -> 37.5062 | C26: 2451.35 | D26: 15087.68 | E26: 6249.57 | F26: 1433.09 | G26: 25221.69
A27: 21 | B27: =паспорт!S31 -> 37.5062 | C27: 2129.2 | D27: 13468.52 | E27: 5155.71 | F27: 1234.8 | G27: 21988.23
A28: 22 | B28: =паспорт!S32 -> 37.5062 | C28: 1444.53 | D28: 9783.69 | E28: 3400.07 | F28: 906.27 | G28: 15534.56
A29: 23 | B29: =паспорт!S33 -> 37.5062 | C29: 1061.94 | D29: 7492.78 | E29: 2606.84 | F29: 637.35 | G29: 11798.91
A30: 24 | B30: =паспорт!S34 -> 37.5062 | C30: 918.96 | D30: 6636.1 | E30: 2240.13 | F30: 532.86 | G30: 10328.05
A31: 25 | B31: =паспорт!S35 -> 37.5713 | C31: 872.3 | D31: 6240.27 | E31: 2241.76 | F31: 531.09 | G31: 9885.42
A32: 26 | B32: =паспорт!S36 -> 37.5713 | C32: 835.05 | D32: 5585.88 | E32: 1988.01 | F32: 460.25 | G32: 8869.19
A33: 27 | B33: =паспорт!S37 -> 37.5713 | C33: 895.44 | D33: 6583.03 | E33: 2141.19 | F33: 537.61 | G33: 10157.27
A34: 28 | B34: =паспорт!S38 -> 37.5713 | C34: 932.67 | D34: 6639.59 | E34: 2162.64 | F34: 520.3 | G34: =SUM(C34:F34) -> 10255.2
A35: 29 | B35: =паспорт!S39 -> 37.5713 | C35: 751.59 | D35: 5828.48 | E35: 1817.82 | F35: 420.89 | G35: 8818.78
A36: 30 | B36: =паспорт!S40 -> 37.5713 | C36: 728.33 | D36: 5687.89 | E36: 1735.48 | F36: 397.74 | G36: 8549.44
A37: 31 | B37: =паспорт!S41 -> 37.5713 | C37: 695.5 | D37: 5403.14 | E37: 1687.78 | F37: 373.17 | G37: 8159.59
A38: Загальний обсяг газу, м3 | C38: =SUM(C7:C37) -> 42266.75 | D38: =SUM(D7:D37) -> 271697.05 | E38: =SUM(E7:E37) -> 103399.42 | F38: =SUM(F7:F37) -> 23506.58 | G38: =SUM(G7:G37) -> 440869.8
A39: Енергія, МДж | C39: =SUMPRODUCT(B7:B37,C7:C37) -> 1586377.051 | D39: =SUMPRODUCT(B7:B37,D7:D37) -> 10197966.89 | E39: =SUMPRODUCT(B7:B37,E7:E37) -> 3880897.483 | F39: =SUMPRODUCT(B7:B37,F7:F37) -> 882248.1532 | G39: =SUMPRODUCT(B7:B37,G7:G37) -> 16547489.58
A40: Теплота згоряння (середньозважене значення за місяць), МДж/м³ | C40: =C39/C38 -> 37.53250607 | D40: =D39/D38 -> 37.53433058 | E40: 37.5330682 | F40: 37.53196565 | G40: 37.5337335
A41: Теплота згоряння (середньозважене значення за місяць), ккал/м³ | C41: =C40*238.8459 -> 8964.485191 | D41: =D40*238.8459 -> 8964.920969 | E41: 8964.619455 | F41: 8964.356115 | G41: 8964.778357
A42: Теплота згоряння (середньозважене значення за місяць), кВт*год./м³ | C42: =C40/3.6 -> 10.42569613 | D42: =D40/3.6 -> 10.42620294 | E42: 10.42585228 | F42: 10.42554601 | G42: 10.42603708

Sheet додаток
A2: Додаток до Паспорту фізико-хімічних показників природного газу № | E2: 99
A4: Область | B4: ГРС, прямий споживач | C4: Cередньозважене значення вищої теплоти згоряння
C5: МДж/м³ | D5: ккал/м³ | E5: кВт*год./м³
A6: Полтавська область | B6: ГРС Кошманівка | C6: =' розрахунок'!C40 -> 37.53250607 | D6: =' розрахунок'!C41 -> 8964.485191 | E6: =' розрахунок'!C42 -> 10.42569613
B7: ГРС Карлівка | C7: =' розрахунок'!D40 -> 37.53433058 | D7: =' розрахунок'!D41 -> 8964.920969 | E7: =' розрахунок'!D42 -> 10.42620294
B8: ГРС Попівка | C8: =' розрахунок'!E40 -> 37.5330682 | D8: =' розрахунок'!E41 -> 8964.619455 | E8: =' розрахунок'!E42 -> 10.42585228
B9: ГРС Халтуріно | C9: =' розрахунок'!F40 -> 37.53196565 | D9: =' розрахунок'!F41 -> 8964.356115 | E9: =' розрахунок'!F42 -> 10.42554601
A10: Середньозважене значення вищої теплоти згоряння по маршруту №99 | C10: =' розрахунок'!G40 -> 37.5337335 | D10: =' розрахунок'!G41 -> 8964.778357 | E10: =' розрахунок'!G42 -> 10.42603708
A13: Заступник начальника Диканського ЛВУМГ | C13: Герасименко І.М. | E13: =TODAY() -> 2017-06-01
A15: Завідувач вимірювальної хіміко-аналітичної лабораторії лабораторії | C15: Горшковоз О.В. | E15: =TODAY() -> 2017-06-01
A17: Начальник службиГВ та М | C17: Левадний С.А. | E17: =TODAY() -> 2017-06-01

Sheet variablesList (hidden)
A1: 3 | B1: x:\gaysin | C1: 10, 11, 24, 25, 127, 128, 132, 180, 207, 215 | D1: x:\
B2: x:\Illinci
B3: x:\Talne
